fUSD/lending_fUSD_20240126
["ID","MTS","AMOUNT","RATE_DAILY","PERIOD"]
[312823997,1706301038737,-201.9729,0.00039244,2]
[312823998,1706301038746,-6574.6283389,0.00039317,10]
[312823999,1706301038757,-1834.84,0.00039347,4]
[312824000,1706301038765,-176.83115917,0.00039349,4]
[312824001,1706301038774,-155.0,0.00039349,4]
[312824002,1706301038783,-218.02,0.00039428,2]
[312824003,1706301038792,-153.08035236,0.00039796,5]
[312824004,1706301038801,-392.81296148,0.00039796,13]
[312824005,1706301038810,-1000.0,0.00039831,2]
[312824006,1706301038819,-9114.34868733,0.00039866,10]
[312824007,1706301038831,-2189.2163558,0.00039866,10]
[312824008,1706301038842,-645.46127399,0.00039866,10]
[312824020,1706301040315,-2065.12051418,0.00039866,10]
[312824021,1706301040328,-12284.3665243,0.00039866,10]
[312824022,1706301040337,-1864.05265511,0.00039876,5]
[312824023,1706301040349,-49997.24952012,0.00039876,5]
[312824024,1706301041032,-3932.15388301,0.00039876,5]
[312824045,1706301042615,-1003.6035292,0.00039876,5]
[312824046,1706301042628,-2963.23088319,0.00039876,5]
[312824047,1706301042640,-5661.307008,0.00039876,5]
[312824048,1706301042652,-1174.34256977,0.00039876,5]
[312824049,1706301042707,-19926.7823377,0.00039876,5]
[312824050,1706301042718,-9252.53413386,0.00039896,2]
[312824051,1706301042766,-513.58131424,0.00039896,2]
[312824052,1706301042904,-443.052,0.00039896,2]
[312824053,1706301042915,-3950.0,0.00039896,2]
[312824054,1706301042926,-4848.7926519,0.00039896,2]
[312824055,1706301042935,-500.0,0.00039896,2]
[312824056,1706301042949,-7228.42438186,0.00039896,2]
[312824057,1706301042960,-841.0402,0.00039896,2]
[312824061,1706301043102,-10001.538,0.00039896,2]
[312824064,1706301043113,-2245.30571355,0.00039896,2]
[312824066,1706301043124,-19562.00170459,0.00039896,2]
[312824068,1706301043133,-2698.26178563,0.00039896,2]
[312824101,1706301045791,-60881.42715962,0.00039896,2]
[312824103,1706301045803,-1122.18281956,0.00039896,2]
[312824105,1706301045814,-4190.10000001,0.00039896,2]
[312824107,1706301045825,-608.58737114,0.00039896,2]
[312824108,1706301045836,-8767.82326404,0.00039896,2]
[312824110,1706301045845,-1000.0,0.00039896,15]
[312824112,1706301045854,-1804.3201016,0.00039897,4]
[312824114,1706301045863,-1809.9,0.00039986,5]
[312824115,1706301045872,-1823.01,0.00039986,5]
[312824117,1706301045881,-1823.33,0.00039986,5]
[312824119,1706301045891,-1833.39,0.00039986,5]
[312824121,1706301045900,-188.85163637,0.00039998,4]
[312824123,1706301045910,-241.01578099,0.00039998,4]
[312824124,1706301045919,-200.0,0.00039998,4]
[312824126,1706301045928,-12126.98996215,0.00039998,4]
[312824128,1706301045937,-689.61162471,0.0004,2]
[312824129,1706301045948,-800.00736387,0.0004,60]
[312824131,1706301045957,-344.75,0.00040349,15]
[312824133,1706301045966,-392.81296141,0.00041169,15]
[312824135,1706301045976,-357.0,0.0004129,3]
[312824137,1706301045985,-183.93241377,0.00041522,4]
[312824139,1706301045994,-1435.0,0.0004169,3]
[312824141,1706301046003,-1018.0,0.0004169,2]
[312824142,1706301046012,-256.0,0.0004169,3]
[312824144,1706301046021,-5000.0,0.00041789,3]
[312824146,1706301046030,-34983.0,0.0004179,2]
[312824148,1706301046040,-6680.0,0.0004179,2]
[312824149,1706301046049,-207.64344887,0.00041862,10]
[312824151,1706301046058,-1751.0554701,0.00041868,2]
[312824153,1706301046068,-267.5973644,0.00041868,2]
[312824155,1706301046077,-86522.7223861,0.00041869,8]
[312824156,1706301046086,-44312.54514177,0.00041879,8]
[312824158,1706301046097,-13301.59701894,0.00041879,8]
[312824160,1706301046108,-28908.58022539,0.00041879,8]
[312824162,1706301046117,-44251.89331563,0.00041889,8]
[312824165,1706301046128,-28819.50274397,0.00041889,8]
[312824167,1706301046139,-12080.75,0.00041889,8]
[312824323,1706302231793,-163.06984124,0.000245,2]
[312824324,1706302231802,-155.0,0.00024599,2]
[312824325,1706302231812,-3682.87510353,0.00024599,4]
[312824326,1706302231822,-1547.72668293,0.000246,2]
[312824327,1706302232016,-664.46,0.00024658,2]
[312824328,1706302232034,-1251.18330209,0.00025,2]
[312824329,1706302232047,-664.46,0.0002509,2]
[312824330,1706302232056,-337.47,0.00025214,2]
[312824331,1706302232065,-664.46,0.00025523,2]
[312824332,1706302232074,-781.06,0.00025695,2]
[312824334,1706302232083,-150.0,0.00025824,2]
[312824336,1706302232092,-150.0,0.00025824,2]
[312824338,1706302232100,-769.03,0.00025824,2]
[312824339,1706302232109,-499.99,0.00025825,2]
[312824340,1706302232118,-436.36,0.00025825,2]
[312824341,1706302232127,-664.46,0.00025955,2]
[312824342,1706302232136,-1404.17,0.00025955,2]
[312824343,1706302232145,-549.21,0.00025955,2]
[312824344,1706302232154,-664.46,0.00026388,2]
[312824345,1706302232162,-150.0,0.000267,2]
[312824346,1706302232171,-455.6,0.00026809,2]
[312824347,1706302232181,-664.46,0.0002682,2]
[312824348,1706302232190,-150.99,0.0002682,2]
[312824349,1706302232199,-194.51,0.00026894,2]
[312824350,1706302232208,-712.95,0.00027077,2]
[312824351,1706302232217,-163.38,0.00027202,2]
[312824352,1706302232226,-664.46,0.00027253,2]
[312824353,1706302232234,-163.38,0.00027344,2]
[312824354,1706302232243,-162.77,0.00027397,2]
[312824355,1706302232252,-337.47,0.00027477,2]
[312824356,1706302232261,-163.38,0.00027486,2]
[312824357,1706302232270,-163.38,0.00027628,2]
[312824358,1706302232278,-168.94,0.00027662,2]
[312824359,1706302232287,-1182.74,0.00027671,2]
[312824360,1706302232297,-162.77,0.00027682,2]
[312824361,1706302232306,-664.46,0.00027686,2]
[312824362,1706302232315,-250.0,0.00027701,2]
[312824363,1706302232324,-1617.75,0.00027708,2]
[312824364,1706302232334,-400.0,0.0002773,2]
[312824365,1706302232343,-2000.0,0.0002773,2]
[312824366,1706302232352,-250.0,0.0002773,2]
[312824367,1706302232361,-163.38,0.00027769,2]
[312824368,1706302232370,-163.38,0.00027911,2]
[312824369,1706302232379,-162.77,0.00027967,2]
[312824370,1706302232388,-163.38,0.00028053,2]
[312824371,1706302232397,-664.46,0.00028118,2]
[312824372,1706302232407,-163.95,0.00028152,2]
[312824373,1706302232416,-163.38,0.00028195,2]
[312824374,1706302232425,-600.0,0.00028211,2]
[312824375,1706302232435,-3078.21,0.00028228,2]
[312824376,1706302232444,-162.77,0.00028252,2]
[312824377,1706302232453,-689.05942203,0.00028321,2]
[312824378,1706302232462,-163.38,0.00028336,2]
[312824379,1706302232471,-210.0,0.00028407,2]
[312824380,1706302232480,-455.6,0.00028453,2]
[312824381,1706302232489,-163.38,0.00028478,2]
[312824382,1706302232498,-162.77,0.00028537,2]
[312824383,1706302232507,-664.46,0.00028551,2]
[312824384,1706302232517,-289.87,0.0002859,2]
[312824385,1706302232526,-163.38,0.0002862,2]
[312824386,1706302232535,-1182.74,0.00028695,2]
[312824387,1706302232545,-162.77,0.00028822,2]
[312824388,1706302232554,-664.46,0.00028983,2]
[312824389,1706302232563,-2500.0,0.00029096,2]
[312824390,1706302232572,-264.44,0.00029186,2]
[312824391,1706302232581,-149340.12183911,0.00029196,2]
[312824392,1706302232606,-1042.42601603,0.00029196,2]
[312824393,1706302232617,-1403.57398397,0.00029196,2]
[312824394,1706302232628,-792.99802951,0.00029196,2]
[312824395,1706302232662,-547.03,0.00029196,2]
[312824396,1706302232672,-1250.0,0.00029196,2]
[312824397,1706302232705,-612.83195705,0.00029196,2]
[312824398,1706302232724,-2472.68673685,0.00029196,2]
[312824399,1706302232735,-777.0591856,0.00029196,2]
[312824400,1706302232747,-673.01,0.00029196,2]
[312824401,1706302232763,-468.15,0.00029196,2]
[312824402,1706302232776,-576.35796011,0.00029196,2]
[312824417,1706302237787,-155.0,0.00024499,2]
[312824418,1706302237796,-2453.43218206,0.00029196,2]
[312824419,1706302237853,-113437.82083567,0.00029196,2]
[312824420,1706302237862,-201.04643609,0.00029197,2]
[312824421,1706302237870,-158.56574006,0.00029197,2]
[312824422,1706302237879,-164.39591223,0.00029197,2]
[312824423,1706302237889,-473.62844747,0.00029197,2]
[312824424,1706302237898,-400.40072411,0.00029197,2]
[312824425,1706302237907,-158.86466524,0.00029197,2]
[312824426,1706302237916,-329.46360402,0.00029197,2]
[312824427,1706302237925,-1709.96186533,0.00029197,2]
[312824428,1706302237935,-516.75299771,0.00029197,2]
[312824429,1706302237944,-201.74974013,0.00029197,2]
[312824430,1706302237953,-1050.80754485,0.00029197,2]
[312824431,1706302237962,-201.91711079,0.00029197,2]
[312824432,1706302237971,-286.78293325,0.00029197,2]
[312824433,1706302237981,-167.29398708,0.00029197,2]
[312824434,1706302237990,-370.93681553,0.00029197,2]
[312824435,1706302237999,-549.18384813,0.00029197,2]
[312824436,1706302238008,-1178.76061238,0.00029197,2]
[312824437,1706302238018,-2088.88170742,0.00029197,2]
[312824438,1706302238027,-343.24758046,0.00029197,2]
[312824439,1706302238036,-417.60997134,0.00029197,2]
[312824440,1706302238051,-12303.42922454,0.00029197,2]
[312824441,1706302238060,-310.42145107,0.00029198,2]
[312824442,1706302238069,-2579.08840316,0.00029198,2]
[312824443,1706302238079,-22760.38758408,0.00029199,2]
[312824444,1706302238088,-937.0,0.000292,2]
[312824445,1706302238098,-1874.0,0.000293,2]
[312824446,1706302238107,-664.46,0.00029416,2]
[312824447,1706302238115,-1182.74,0.00029719,2]
[312824448,1706302238124,-337.47,0.00029741,2]
[312824449,1706302238134,-175.77811958,0.000298,2]
[312824450,1706302238143,-1830.6375,0.000298,2]
[312824452,1706302238153,-1549.5902,0.000298,2]
[312824453,1706302238162,-4954.9037,0.000298,2]
[312824454,1706302238171,-664.46,0.00029848,2]
[312824455,1706302238179,-361.54578775,0.0002989,2]
[312824456,1706302238189,-264.44,0.0002989,2]
[312824457,1706302238198,-397.8618,0.000299,2]
[312824459,1706302238207,-245000.0,0.000299,2]
[312824460,1706302238216,-791.507,0.000299,2]
[312824462,1706302238226,-275.8930555,0.000299,2]
[312824464,1706302238235,-264.44,0.0002999,2]
[312824466,1706302238245,-155.0,0.0003,2]
[312824468,1706302238254,-582.7666979,0.0003,2]
[312824471,1706302238263,-9641.46795832,0.0003,2]
[312824473,1706302238273,-110736.0759719,0.0003,4]
[312824475,1706302238282,-693.19279823,0.0003,2]
[312824477,1706302238292,-455.6,0.00030097,2]
[312824479,1706302238301,-153.84,0.00030137,2]
[312824481,1706302238311,-163.06984124,0.00030253,2]
[312824483,1706302238320,-664.46,0.00030281,2]
[312824485,1706302238329,-664.46,0.00030714,2]
[312824487,1706302238338,-1182.74,0.00030743,2]
[312824489,1706302238348,-153.84,0.00030782,2]
[312824491,1706302238358,-664.46,0.00031146,2]
[312824493,1706302238367,-400.0,0.00031196,2]
[312824495,1706302238376,-153.84,0.00031426,2]
[312824497,1706302238385,-664.46,0.00031579,2]
[312824499,1706302238394,-180.0,0.00031644,2]
[312824501,1706302238404,-263.21,0.00031644,2]
[312824503,1706302238413,-600.0,0.00031737,2]
[312824505,1706302238422,-455.6,0.0003174,2]
[312824507,1706302238432,-1182.74,0.00031767,2]
[312824509,1706302238441,-5000.0,0.0003189,2]
[312824511,1706302238450,-337.47,0.00032005,2]
[312824513,1706302238459,-664.46,0.00032011,2]
[312824515,1706302238468,-153.84,0.00032071,2]
[312824517,1706302238477,-978.76623601,0.00032185,7]
[312824519,1706302238487,-664.46,0.00032444,2]
[312824521,1706302238496,-155.49952712,0.000325,2]
[312824523,1706302238505,-378.939225,0.000327,2]
[312824525,1706302238515,-153.84,0.00032716,2]
[312824527,1706302238524,-664.46,0.00032876,2]
[312824529,1706302238533,-374.95,0.00032877,2]
[312824531,1706302238543,-500.0,0.00032877,2]
[312824533,1706302238552,-258.56,0.00032877,15]
[312824535,1706302238562,-396.84187957,0.00033254,5]
[312824537,1706302238571,-153.84,0.0003336,2]
[312824539,1706302238584,-455.6,0.00033384,2]
[312824541,1706302238593,-184.0,0.00033473,2]
[312824543,1706302238603,-821.26747765,0.00033709,3]
[312824545,1706302238612,-492.53361712,0.00033709,3]
[312824547,1706302238622,-507.16322137,0.00034,4]
[312824550,1706302238631,-1000.0,0.00034,4]
[312824552,1706302238640,-153.84,0.00034005,2]
[312824554,1706302238649,-337.47,0.00034269,2]
[312824556,1706302238658,-153.84,0.00034649,2]
[312824558,1706302238667,-400.0,0.00034662,2]
[312824560,1706302238677,-2699.85285848,0.000349,2]
[312824562,1706302238687,-2699.85285835,0.000349,2]
[312824564,1706302238697,-2699.85285835,0.000349,2]
[312824566,1706302238706,-2699.85285835,0.000349,2]
[312824567,1706302238715,-2699.85285835,0.000349,2]
[312824569,1706302238724,-155.0,0.00035,2]
[312824570,1706302238733,-155.0,0.00035,2]
[312824572,1706302238743,-455.6,0.00035028,2]
[312824574,1706302238753,-600.0,0.00035264,2]
[312824576,1706302238762,-153.84,0.00035294,2]
[312824578,1706302238774,-538.62,0.00035455,2]
[312824580,1706302238783,-416.32,0.00035455,2]
[312824582,1706302238792,-2699.85285835,0.00035511,2]
[312824584,1706302238802,-358.00273995,0.00035606,4]
[312824586,1706302238811,-557.15402815,0.00035626,2]
[312824588,1706302238820,-153.84,0.00035939,2]
[312824590,1706302238829,-163.06984124,0.00036006,2]
[312824592,1706302238839,-2012.58,0.000361,2]
[312824594,1706302238848,-316.58,0.000361,2]
[312824596,1706302238858,-157.8,0.00036438,2]
[312824598,1706302238868,-4916.47418524,0.00036531,2]
[312824600,1706302238877,-337.47,0.00036533,2]
[312824602,1706302238886,-153.84,0.00036583,2]
[312824604,1706302238896,-258.56,0.00036613,15]
[312824606,1706302238905,-2699.85285835,0.00036653,2]
[312824608,1706302238918,-431.22320751,0.00036701,4]
[312824610,1706302238928,-310.4579952,0.00037,4]
[312824612,1706302238937,-264.44,0.00037202,2]
[312824614,1706302238947,-1858.0,0.00037212,2]
[312824616,1706302238956,-837.0,0.00037212,2]
[312824618,1706302238965,-948.0,0.00037212,2]
[312824620,1706302238974,-1252.0,0.00037212,2]
[312824622,1706302238983,-704.0,0.00037212,2]
[312824624,1706302238992,-1233.0,0.00037212,2]
[312824626,1706302239001,-860.0,0.00037212,2]
[312824628,1706302239010,-319.0,0.00037212,2]
[312824630,1706302239019,-150.0,0.00037212,2]
[312824632,1706302239028,-1145.543,0.00037212,2]
[312824634,1706302239037,-209.0,0.00037212,2]
[312824636,1706302239046,-5550.41,0.00037212,2]
[312824638,1706302239055,-150.0,0.00037212,2]
[312824640,1706302239064,-2911.0,0.00037212,2]
[312824641,1706302239073,-19743.0,0.00037212,2]
[312824643,1706302239083,-4184.0,0.00037212,2]
[312824645,1706302239092,-150.0,0.00037212,2]
[312824647,1706302239102,-153.0,0.00037212,2]
[312824649,1706302239112,-2278.0,0.00037212,2]
[312824651,1706302239122,-153.0,0.00037212,2]
[312824653,1706302239131,-153.28,0.00037212,2]
[312824655,1706302239141,-150.0,0.00037212,2]
[312824657,1706302239150,-1032.0,0.00037212,2]
[312824659,1706302239162,-200.0,0.00037212,2]
[312824662,1706302239171,-153.303,0.00037212,2]
[312824663,1706302239181,-223.973,0.00037212,2]
[312824665,1706302239193,-153.84,0.00037228,2]
[312824667,1706302239235,-449.78,0.0003752,2]
[312824686,1706302239392,-194.51,0.00037651,2]
[312824688,1706302239403,-369.62,0.000377,3]
[312824690,1706302239411,-369.62,0.000377,3]
[312824692,1706302239421,-369.62,0.000377,3]
[312824694,1706302239430,-369.62,0.000377,3]
[312824696,1706302239440,-369.62,0.000377,3]
[312824698,1706302239448,-369.62,0.000377,3]
[312824700,1706302239458,-369.62,0.000377,3]
[312824702,1706302239467,-369.62,0.000377,3]
[312824704,1706302239476,-369.62,0.000377,3]
[312824706,1706302239485,-369.62,0.000377,3]
[312824708,1706302239494,-369.62,0.000377,3]
[312824710,1706302239503,-369.62,0.000377,3]
[312824712,1706302239513,-369.62,0.000377,3]
[312824714,1706302239521,-369.62,0.000377,3]
[312824716,1706302239531,-369.62,0.000377,3]
[312824718,1706302239540,-369.62,0.000377,3]
[312824720,1706302239549,-369.62,0.000377,3]
[312824723,1706302239559,-369.62,0.000377,3]
[312824726,1706302239568,-369.62,0.000377,3]
[312824731,1706302239586,-369.62,0.000377,3]
[312824734,1706302239597,-153.2,0.000377,3]
[312824736,1706302239606,-360.80767537,0.00037795,14]
[312824738,1706302239616,-2699.85285835,0.00037795,2]
[312824739,1706302239625,-2012.58,0.0003783,2]
[312824740,1706302239635,-153.84,0.00037873,2]
[312824741,1706302239645,-400.0,0.00038129,2]
[312824742,1706302239654,-169.31838675,0.00038256,2]
[312824743,1706302239663,-150.33,0.00038356,2]
[312824744,1706302239673,-153.84,0.00038517,2]
[312824745,1706302239683,-600.0,0.0003879,2]
[312824746,1706302239692,-337.47,0.00038797,2]
[312824747,1706302239702,-1475.993153,0.0003888,2]
[312824749,1706302239711,-1475.99315294,0.0003888,2]
[312824751,1706302239720,-1475.99315294,0.0003888,2]
[312824753,1706302239730,-1475.99315294,0.0003888,2]
[312824755,1706302239739,-2699.85285835,0.00038937,2]
[312824757,1706302239749,-1617.75,0.00038941,2]
[312824759,1706302239758,-282.21761447,0.0003898,2]
[312824761,1706302239769,-1429.82219222,0.00039,2]
[312824763,1706302239780,-153.84,0.00039162,2]
[312824765,1706302239789,-1000.0,0.0003926,2]
[312824767,1706302239798,-800.0,0.00039342,2]
[312824769,1706302239807,-184.0,0.00039403,2]
[312824771,1706302239817,-3078.21,0.00039461,2]
[312824773,1706302239826,-2012.58,0.0003956,2]
[312824775,1706302239836,-19197.94625667,0.00039801,4]
[312824777,1706302239845,-3126.62522492,0.00039802,4]
[312824779,1706302239855,-153.84,0.00039806,2]
[312824781,1706302239866,-150.33,0.00039831,2]
[312824784,1706302239876,-153.62602514,0.00039881,6]
[312824786,1706302239885,-327.734199,0.00039894,4]
[312824788,1706302239896,-8926.3291577,0.00039894,4]
[312824790,1706302239905,-191.04557841,0.00039894,4]
[312824792,1706302239915,-2478.53279229,0.00039895,4]
[312824794,1706302239924,-800.00736387,0.0004,60]
[312824796,1706302239934,-190.55359364,0.0004,2]
[312824798,1706302239943,-155.0,0.0004,2]
[312824800,1706302239952,-6439.36,0.0004,2]
[312824802,1706302239961,-2699.85285835,0.00040079,5]
[312824804,1706302239970,-699.788,0.00040212,2]
[312824806,1706302239979,-837.0,0.00040212,2]
[312824808,1706302239988,-948.0,0.00040212,2]
[312824810,1706302239997,-1252.0,0.00040212,2]
[312824812,1706302240007,-197.644,0.00040212,2]
[312824814,1706302240016,-1233.0,0.00040212,2]
[312824816,1706302240025,-319.0,0.00040212,2]
[312824818,1706302240035,-860.0,0.00040212,2]
[312824820,1706302240044,-150.0,0.00040212,2]
[312824822,1706302240053,-1138.0,0.00040212,2]
[312824824,1706302240062,-150.0,0.00040212,2]
[312824826,1706302240072,-2911.0,0.00040212,2]
[312824828,1706302240080,-19743.0,0.00040212,2]
[312824830,1706302240090,-1448.363,0.00040212,2]
[312824832,1706302240099,-150.0,0.00040212,2]
[312824834,1706302240108,-2278.0,0.00040212,2]
[312824836,1706302240116,-150.0,0.00040212,2]
[312824838,1706302240125,-1032.0,0.00040212,2]
[312824840,1706302240134,-150.0,0.00040212,2]
[312824842,1706302240143,-584.99738151,0.00040269,12]
[312824844,1706302240152,-258.56,0.00040349,15]
[312824846,1706302240161,-153.84,0.00040451,2]
[312824848,1706302240170,-1000.0,0.00040733,2]
[312824850,1706302240178,-800.0,0.00041,2]
[312824852,1706302240188,-5000.0,0.00041,30]
[312824854,1706302240198,-150.0,0.00041,20]
[312824856,1706302240208,-155.0,0.00041,2]
[312824858,1706302240217,-352.39,0.00041,2]
[312824860,1706302240227,-3000.0,0.00041,2]
[312824862,1706302240236,-3000.0,0.00041,2]
[312824864,1706302240245,-3000.0,0.00041,2]
[312824866,1706302240254,-3000.0,0.00041,2]
[312824868,1706302240264,-3000.0,0.00041,2]
[312824870,1706302240273,-3078.54113967,0.00041,2]
[312824872,1706302240282,-250.0,0.00041,2]
[312824874,1706302240292,-300.0,0.00041,2]
[312824876,1706302240301,-150.54,0.00041,2]
[312824878,1706302240310,-1475.99315294,0.00041009,3]
[312824880,1706302240319,-337.47,0.00041061,2]
[312824882,1706302240328,-153.84,0.00041096,2]
[312824884,1706302240338,-181.0,0.00041096,2]
[312824886,1706302240347,-200.43839479,0.00041096,30]
[312824888,1706302240356,-5000.0,0.00041107,3]
[312824890,1706302240366,-2000.0,0.00041153,4]
[312824892,1706302240375,-264.44,0.00041211,2]
[312824894,1706302240385,-150.54,0.00041217,2]
[312824896,1706302240394,-150.54,0.00041217,2]
[312824898,1706302240403,-2699.85285835,0.00041221,5]
[312824900,1706302240413,-29607.98949995,0.00041225,2]
[312824902,1706302240422,-4217.6861042,0.00041227,11]
[312824904,1706302240431,-85671.6241269,0.00041227,7]
[312824906,1706302240442,-195.23777855,0.00041269,2]
[312824908,1706302240451,-1000.0,0.00041269,2]
[312824911,1706302240460,-1000.0,0.00041269,2]
[312824913,1706302240469,-1000.0,0.00041269,2]
[312824914,1706302240478,-1000.0,0.00041269,2]
[312824915,1706302240487,-1000.0,0.00041269,2]
[312824916,1706302240497,-1000.0,0.00041269,2]
[312824917,1706302240506,-1000.0,0.00041269,2]
[312824918,1706302240516,-1000.0,0.00041269,2]
[312824919,1706302240525,-1000.0,0.00041269,2]
[312824920,1706302240535,-1000.0,0.00041269,2]
[312824921,1706302240544,-1462.554493,0.00041269,2]
[312824922,1706302240553,-250.0,0.00041274,2]
[312824923,1706302240562,-2025.913235,0.0004129,2]
[312824924,1706302240571,-150.33,0.00041307,2]
[312824925,1706302240581,-269.68289212,0.00041477,4]
[312824926,1706302240590,-986.0,0.0004159,2]
[312824927,1706302240599,-400.0,0.00041595,2]
[312824928,1706302240609,-150.1,0.00041599,2]
[312824929,1706302240618,-150.54,0.0004168,2]
[312824930,1706302240628,-18106.0,0.0004169,2]
[312824931,1706302240637,-5772.0,0.0004169,2]
[312824932,1706302240647,-1972.0,0.0004169,3]
[312824933,1706302240656,-524.00793512,0.00041758,2]
[312824934,1706302240665,-187.18634131,0.00041758,2]
[312824935,1706302240674,-163.06984124,0.00041759,2]
[312824936,1706302240685,-264.44,0.00041768,2]
[312824937,1706302240694,-150.54,0.00041768,2]
[312824938,1706302240703,-150.54,0.00041768,2]
[312824939,1706302240713,-150.54,0.00041768,2]
[312824940,1706302240723,-42176.861042,0.00041778,11]
[312824941,1706302240732,-85671.6241269,0.00041778,8]
[312824942,1706302240741,-264.44,0.00041778,2]
[312824943,1706302240750,-150.54,0.00041778,2]
[312824944,1706302240759,-150.54,0.00041778,2]
[312824945,1706302240768,-150.54,0.00041778,2]
[312824946,1706302240780,-150.54,0.0004178,2]
[312824947,1706302240789,-71700.6637714,0.00041788,11]
[312824948,1706302240799,-85671.6241269,0.00041788,8]
[312824949,1706302240808,-264.44,0.00041788,2]
[312824950,1706302240817,-150.54,0.00041788,2]
[312824951,1706302240826,-150.54,0.00041788,2]
[312824952,1706302240835,-150.54,0.00041788,2]
[312824953,1706302240844,-9402.0,0.0004179,2]
[312824954,1706302240855,-21584.0,0.0004179,3]
[312824955,1706302240865,-2826.0,0.0004179,2]
[312824956,1706302240874,-5961.0,0.0004179,3]
[312824957,1706302240883,-69937.6037,0.00041798,2]
[312824958,1706302240892,-73533.3799,0.00041798,2]
[312824959,1706302240901,-1000.0,0.00041799,15]
[312824960,1706302240910,-150.54,0.00041838,2]
[312824961,1706302240919,-150.54,0.00041838,2]
[312824962,1706302240928,-150.54,0.00041848,2]
[312824963,1706302240938,-42176.861042,0.00041849,11]
[312824964,1706302240947,-85671.6241269,0.00041849,8]
[312824965,1706302240957,-42176.861042,0.00041857,11]
[312824966,1706302240966,-361.54578775,0.00041857,2]
[312824967,1706302240975,-264.44,0.00041857,2]
[312824968,1706302240984,-150.54,0.00041857,2]
[312824969,1706302240992,-150.54,0.00041857,2]
[312824970,1706302241001,-12653.0583126,0.00041868,11]
[312824971,1706302241010,-85671.6241269,0.00041868,8]
[312824972,1706302241020,-3000.0,0.00041868,11]
[312824973,1706302241029,-150.54,0.00041875,2]
[312824974,1706302241039,-150.54,0.00041875,2]
[312824975,1706302241048,-264.44,0.00041875,2]
[312824976,1706302241058,-150.54,0.00041875,2]
[312824977,1706302241066,-150.54,0.00041875,2]
[312824978,1706302241078,-150.54,0.00041878,2]
[312824979,1706302241087,-150.54,0.00041878,2]
[312824980,1706302241097,-150.54,0.00041879,2]
[312824981,1706302241106,-85671.6241269,0.00041885,8]
[312824982,1706302241115,-150.54,0.00041885,2]
[312824983,1706302241123,-150.54,0.00041886,2]
[312824984,1706302241132,-95041.90449781,0.00041887,3]
[312824985,1706302241142,-85671.6241269,0.00041888,8]
[312824986,1706302241150,-150.54,0.00041888,2]
[312824987,1706302241159,-150.54,0.00041888,2]
[312824988,1706302241168,-150.54,0.00041888,2]
[312824989,1706302241177,-500.0,0.00041889,7]
[312824990,1706302241187,-42292.29087851,0.00041889,4]
[312824991,1706302241196,-200.0,0.00041889,2]
[312824992,1706302241205,-155.0,0.00041889,4]
[312824993,1706302241214,-2373.57297439,0.00041889,4]
[312824994,1706302241223,-1206.2073378,0.00041889,4]
[312824995,1706302241233,-2254.65193104,0.00041889,3]
[312824996,1706302241242,-3913.73656648,0.00041889,7]
[312824997,1706302241251,-782.80629544,0.00041889,4]
[312824998,1706302241260,-200.0,0.00041889,7]
[312824999,1706302241269,-150.0,0.00041889,30]
[312825000,1706302241278,-3997.98393274,0.00041889,2]
[312825001,1706302241287,-586.0,0.0004189,2]
[312825002,1706302241296,-800.0,0.0004189,2]
[312825003,1706302241305,-29607.98949995,0.00041895,2]
[312825004,1706302241314,-31570.98892951,0.00041896,2]